[Event "Titled Tuesday Blitz December 06 Early 2022"]
[White "sabkeIXO"]
[Black "Tsyhanchuk, Stanislav"]
[BlackFideId "13505130"]
[WhiteElo "2484"]
[BlackElo "2173"]
[Result "1-0"]
[Round "09"]
[TimeControl "180+1"]
[Date "2022.12.07"]
[WhiteClock "0:01:46"]
[BlackClock "0:00:43"]

1. e4 {[%clk 0:02:56]}  c5 {[%clk 0:02:59]} 2. Nc3 {[%clk 0:02:56]}  e6 {[%clk 0:02:56]} 3. f4 {[%clk 0:02:56]}  Nc6 {[%clk 0:02:54]} 4. Nf3 {[%clk 0:02:55]}  d5 {[%clk 0:02:54]} 5. Bb5 {[%clk 0:02:55]}  d4 {[%clk 0:02:50]} 6. Bxc6+ {[%clk 0:02:52]}  bxc6 {[%clk 0:02:50]} 7. Na4 {[%clk 0:02:52]}  Ba6 {[%clk 0:02:44]} 8. b3 {[%clk 0:02:48]}  d3 {[%clk 0:02:19]} 9. c4 {[%clk 0:02:47]}  Qf6 {[%clk 0:02:16]} 10. Bb2 {[%clk 0:02:30]}  Qxf4 {[%clk 0:02:15]} 11. O-O {[%clk 0:02:30]}  Qxe4 {[%clk 0:02:11]} 12. Ng5 {[%clk 0:02:28]}  Qe2 {[%clk 0:01:24]} 13. Nxf7 {[%clk 0:02:19]}  Nf6 {[%clk 0:01:19]} 14. Nxh8 {[%clk 0:02:10]}  Be7 {[%clk 0:01:07]} 15. Nc3 {[%clk 0:01:57]}  Qe5 {[%clk 0:01:00]} 16. Qf3 {[%clk 0:01:49]}  Kd7 {[%clk 0:00:36]} 17. Nf7 {[%clk 0:01:40]}  Qd4+ {[%clk 0:00:35]} 18. Kh1 {[%clk 0:01:39]}  Rf8 {[%clk 0:00:33]} 19. Na4 {[%clk 0:01:36]}  Qe4 {[%clk 0:00:05]} 20. Ne5+ {[%clk 0:01:33]}  Ke8 {[%clk 0:00:05]} 21. Qxe4 {[%clk 0:01:25]}  Nxe4 {[%clk 0:00:06]} 22. Rxf8+ {[%clk 0:01:25]}  Bxf8 {[%clk 0:00:06]} 23. Bc3 {[%clk 0:01:21]}  Bb7 {[%clk 0:00:05]} 24. Re1 {[%clk 0:01:19]}  Nxc3 {[%clk 0:00:04]} 25. Nxc3 {[%clk 0:01:18]}  Be7 {[%clk 0:00:02]} 26. Nxd3 {[%clk 0:01:18]}  Kf7 {[%clk 0:00:03]} 27. Ne5+ {[%clk 0:01:17]}  Ke8 {[%clk 0:00:03]} 28. Ne4 {[%clk 0:01:17]}  Bf6 {[%clk 0:00:03]} 29. Nxf6+ {[%clk 0:01:16]}  gxf6 {[%clk 0:00:03]} 30. Nd3 {[%clk 0:01:16]}  Kd7 {[%clk 0:00:03]} 31. Nxc5+ {[%clk 0:01:17]}  Kc7 {[%clk 0:00:04]} 32. Nxb7 {[%clk 0:01:17]}  Kxb7 {[%clk 0:00:05]} 33. Rxe6 {[%clk 0:01:18]}  a5 {[%clk 0:00:06]} 34. Rxf6 {[%clk 0:01:18]}  a4 {[%clk 0:00:06]} 35. b4 {[%clk 0:01:18]}  c5 {[%clk 0:00:07]} 36. b5 {[%clk 0:01:19]}  h5 {[%clk 0:00:08]} 37. Rc6 {[%clk 0:01:18]}  a3 {[%clk 0:00:09]} 38. d3 {[%clk 0:01:18]}  h4 {[%clk 0:00:10]} 39. h3 {[%clk 0:01:19]}  Kb8 {[%clk 0:00:09]} 40. Kg1 {[%clk 0:01:20]}  Kb7 {[%clk 0:00:10]} 41. Kf2 {[%clk 0:01:21]}  Kb8 {[%clk 0:00:11]} 42. Kf3 {[%clk 0:01:22]}  Kb7 {[%clk 0:00:12]} 43. Kg4 {[%clk 0:01:23]}  Kb8 {[%clk 0:00:13]} 44. Kxh4 {[%clk 0:01:23]}  Kb7 {[%clk 0:00:14]} 45. Kg4 {[%clk 0:01:24]}  Kb8 {[%clk 0:00:14]} 46. Kf4 {[%clk 0:01:25]}  Kb7 {[%clk 0:00:15]} 47. Ke4 {[%clk 0:01:26]}  Kb8 {[%clk 0:00:16]} 48. Kd5 {[%clk 0:01:27]}  Kb7 {[%clk 0:00:16]} 49. Kxc5 {[%clk 0:01:28]}  Ka7 {[%clk 0:00:17]} 50. Kb4 {[%clk 0:01:29]}  Kb7 {[%clk 0:00:18]} 51. Kxa3 {[%clk 0:01:30]}  Kb8 {[%clk 0:00:19]} 52. Kb4 {[%clk 0:01:31]}  Kb7 {[%clk 0:00:20]} 53. Kc5 {[%clk 0:01:32]}  Ka7 {[%clk 0:00:21]} 54. a4 {[%clk 0:01:32]}  Kb7 {[%clk 0:00:22]} 55. a5 {[%clk 0:01:33]}  Kb8 {[%clk 0:00:23]} 56. Kd5 {[%clk 0:01:34]}  Kb7 {[%clk 0:00:24]} 57. Ke5 {[%clk 0:01:35]}  Ka7 {[%clk 0:00:25]} 58. c5 {[%clk 0:01:36]}  Kb7 {[%clk 0:00:25]} 59. d4 {[%clk 0:01:37]}  Kb8 {[%clk 0:00:26]} 60. d5 {[%clk 0:01:38]}  Kb7 {[%clk 0:00:27]} 61. g4 {[%clk 0:01:39]}  Ka7 {[%clk 0:00:28]} 62. h4 {[%clk 0:01:39]}  Kb7 {[%clk 0:00:29]} 63. g5 {[%clk 0:01:40]}  Kb8 {[%clk 0:00:30]} 64. h5 {[%clk 0:01:41]}  Kb7 {[%clk 0:00:31]} 65. g6 {[%clk 0:01:42]}  Ka7 {[%clk 0:00:31]} 66. h6 {[%clk 0:01:43]}  Kb7 {[%clk 0:00:32]} 67. g7 {[%clk 0:01:44]}  Kb8 {[%clk 0:00:33]} 68. h7 {[%clk 0:01:45]}  Kb7 {[%clk 0:00:34]} 69. Rf6 {[%clk 0:01:45]}  Ka7 {[%clk 0:00:35]} 70. Kd6 {[%clk 0:01:45]}  Kb7 {[%clk 0:00:36]} 71. Rf7+ {[%clk 0:01:45]}  Kb8 {[%clk 0:00:37]} 72. Ke7 {[%clk 0:01:45]}  Kb7 {[%clk 0:00:37]} 73. Ke6+ {[%clk 0:01:45]}  Kb8 {[%clk 0:00:38]} 74. a6 {[%clk 0:01:46]}  Ka8 {[%clk 0:00:39]} 75. b6 {[%clk 0:01:47]}  Kb8 {[%clk 0:00:39]} 76. c6 {[%clk 0:01:48]}  Ka8 {[%clk 0:00:40]} 77. d6 {[%clk 0:01:49]}  Kb8 {[%clk 0:00:41]} 78. g8=N {[%clk 0:01:47]}  Ka8 {[%clk 0:00:42]} 79. h8=Q {[%clk 0:01:47]}  Kb8 {[%clk 0:00:43]} 80. Nf6# {[%clk 0:01:46]} 1-0


[Site "https://www.chess.com"]

[Event "Titled Tuesday Blitz December 06 Early 2022"]
[White "Andreikin, Dmitry"]
[Black "Acor, Corey"]
[WhiteFideId "4158814"]
[BlackFideId "2024861"]
[WhiteElo "2735"]
[BlackElo "2341"]
[Result "1-0"]
[Round "10"]
[TimeControl "180+1"]
[Date "2022.12.06"]
[WhiteClock "0:00:51"]
[BlackClock "0:00:01"]

1. c4 {[%clk 0:02:59]}  e5 {[%clk 0:02:59]} 2. Nc3 {[%clk 0:02:59]}  Nc6 {[%clk 0:03:00]} 3. e3 {[%clk 0:02:59]}  g6 {[%clk 0:03:00]} 4. d4 {[%clk 0:02:58]}  d6 {[%clk 0:02:57]} 5. d5 {[%clk 0:02:53]}  Nce7 {[%clk 0:02:56]} 6. e4 {[%clk 0:02:51]}  Bg7 {[%clk 0:02:56]} 7. h4 {[%clk 0:02:48]}  h6 {[%clk 0:02:54]} 8. h5 {[%clk 0:02:47]}  Nf6 {[%clk 0:02:38]} 9. Be2 {[%clk 0:02:43]}  Nxh5 {[%clk 0:02:31]} 10. Bxh5 {[%clk 0:02:42]}  gxh5 {[%clk 0:02:32]} 11. Qxh5 {[%clk 0:02:40]}  Ng6 {[%clk 0:02:25]} 12. Nge2 {[%clk 0:02:37]}  Qf6 {[%clk 0:02:19]} 13. f3 {[%clk 0:02:06]}  Bd7 {[%clk 0:02:15]} 14. Be3 {[%clk 0:02:05]}  a6 {[%clk 0:01:41]} 15. O-O-O {[%clk 0:02:00]}  Ne7 {[%clk 0:01:32]} 16. Rdf1 {[%clk 0:01:42]}  Qg6 {[%clk 0:01:30]} 17. g4 {[%clk 0:01:40]}  O-O-O {[%clk 0:00:51]} 18. Ng3 {[%clk 0:01:38]}  Kb8 {[%clk 0:00:50]} 19. Nf5 {[%clk 0:01:33]}  Bxf5 {[%clk 0:00:40]} 20. exf5 {[%clk 0:01:29]}  Qxh5 {[%clk 0:00:32]} 21. Rxh5 {[%clk 0:01:30]}  f6 {[%clk 0:00:24]} 22. Rfh1 {[%clk 0:01:27]}  Ng8 {[%clk 0:00:22]} 23. Kc2 {[%clk 0:01:21]}  Bf8 {[%clk 0:00:19]} 24. a4 {[%clk 0:01:21]}  Kc8 {[%clk 0:00:17]} 25. b4 {[%clk 0:01:21]}  Rd7 {[%clk 0:00:17]} 26. b5 {[%clk 0:01:21]}  Rhh7 {[%clk 0:00:17]} 27. Ne4 {[%clk 0:01:18]}  Rhf7 {[%clk 0:00:15]} 28. Kd3 {[%clk 0:01:15]}  c6 {[%clk 0:00:12]} 29. Rb1 {[%clk 0:00:57]}  cxd5 {[%clk 0:00:09]} 30. cxd5 {[%clk 0:00:58]}  axb5 {[%clk 0:00:07]} 31. axb5 {[%clk 0:00:57]}  Be7 {[%clk 0:00:05]} 32. Ra1 {[%clk 0:00:55]}  Kb8 {[%clk 0:00:04]} 33. Rh2 {[%clk 0:00:54]}  Bd8 {[%clk 0:00:04]} 34. Rha2 {[%clk 0:00:51]}  Kc8 {[%clk 0:00:01]} 35. Ra8+ {[%clk 0:00:51]}  Kc7 {[%clk 0:00:01]} 36. b6# {[%clk 0:00:51]} 1-0


[Site "https://www.chess.com"]

[Event "Titled Tuesday Blitz December 06 Early 2022"]
[White "Bashirli, Saadat"]
[Black "Omariev, Maksim"]
[WhiteFideId "13429990"]
[BlackFideId "4193423"]
[WhiteElo "1408"]
[BlackElo "2449"]
[Result "0-1"]
[Round "10"]
[TimeControl "180+1"]
[Date "2022.12.07"]
[WhiteClock "0:00:38"]
[BlackClock "0:01:02"]

1. d4 {[%clk 0:03:00]}  h5 {[%clk 0:03:00]} 2. e4 {[%clk 0:02:58]}  h4 {[%clk 0:03:01]} 3. Bc4 {[%clk 0:02:56]}  h3 {[%clk 0:03:02]} 4. Nxh3 {[%clk 0:02:56]}  d5 {[%clk 0:03:01]} 5. Bxd5 {[%clk 0:02:55]}  Nf6 {[%clk 0:03:01]} 6. Nf4 {[%clk 0:02:45]}  g5 {[%clk 0:02:56]} 7. Ne2 {[%clk 0:02:41]}  Nxd5 {[%clk 0:02:56]} 8. exd5 {[%clk 0:02:39]}  Qxd5 {[%clk 0:02:57]} 9. Nbc3 {[%clk 0:02:39]}  Qxg2 {[%clk 0:02:56]} 10. Rg1 {[%clk 0:02:35]}  Qxh2 {[%clk 0:02:56]} 11. Bxg5 {[%clk 0:02:29]}  Rg8 {[%clk 0:02:46]} 12. Qd2 {[%clk 0:02:21]}  f6 {[%clk 0:02:45]} 13. Qf4 {[%clk 0:01:57]}  Qh7 {[%clk 0:02:07]} 14. Qxc7 {[%clk 0:01:51]}  Na6 {[%clk 0:02:01]} 15. Qc4 {[%clk 0:01:29]}  Rxg5 {[%clk 0:01:51]} 16. Rxg5 {[%clk 0:01:26]}  fxg5 {[%clk 0:01:52]} 17. O-O-O {[%clk 0:01:25]}  Bd7 {[%clk 0:01:46]} 18. Nd5 {[%clk 0:01:23]}  Rc8 {[%clk 0:01:43]} 19. Qb3 {[%clk 0:01:23]}  Be6 {[%clk 0:01:31]} 20. Qa4+ {[%clk 0:01:22]}  Kf7 {[%clk 0:01:23]} 21. Ne3 {[%clk 0:01:16]}  Bg7 {[%clk 0:01:13]} 22. d5 {[%clk 0:01:14]}  Bf5 {[%clk 0:01:08]} 23. Ng3 {[%clk 0:01:11]}  Nc5 {[%clk 0:01:04]} 24. Qxa7 {[%clk 0:00:43]}  Bxc2 {[%clk 0:01:04]} 25. Nxc2 {[%clk 0:00:42]}  Nb3+ {[%clk 0:01:01]} 26. axb3 {[%clk 0:00:38]}  Qxc2# {[%clk 0:01:02]} 0-1


[Site "https://www.chess.com"]

[Event "Titled Tuesday Blitz December 06 Early 2022"]
[White "Begunov, Konstantin"]
[Black "Grabinsky, Vladimir"]
[WhiteFideId "4118510"]
[BlackFideId "14107074"]
[WhiteElo "2141"]
[BlackElo "2198"]
[Result "1-0"]
[Round "10"]
[TimeControl "180+1"]
[Date "2022.12.07"]
[WhiteClock "0:00:11"]
[BlackClock "0:00:18"]

1. d4 {[%clk 0:03:00]}  Nf6 {[%clk 0:02:56]} 2. c4 {[%clk 0:03:00]}  e6 {[%clk 0:02:55]} 3. Nf3 {[%clk 0:03:01]}  d5 {[%clk 0:02:55]} 4. Nc3 {[%clk 0:03:01]}  c5 {[%clk 0:02:55]} 5. cxd5 {[%clk 0:03:01]}  Nxd5 {[%clk 0:02:52]} 6. g3 {[%clk 0:02:58]}  cxd4 {[%clk 0:02:40]} 7. Nxd4 {[%clk 0:02:52]}  Nxc3 {[%clk 0:02:39]} 8. bxc3 {[%clk 0:02:52]}  Qd5 {[%clk 0:02:39]} 9. f3 {[%clk 0:02:42]}  Nc6 {[%clk 0:02:33]} 10. e4 {[%clk 0:02:35]}  Qa5 {[%clk 0:02:23]} 11. Bd2 {[%clk 0:01:18]}  Bc5 {[%clk 0:02:16]} 12. Nb3 {[%clk 0:01:07]}  Qb6 {[%clk 0:02:12]} 13. Nxc5 {[%clk 0:01:07]}  Qxc5 {[%clk 0:02:13]} 14. Qe2 {[%clk 0:00:51]}  e5 {[%clk 0:02:11]} 15. Rc1 {[%clk 0:00:49]}  Be6 {[%clk 0:02:07]} 16. Be3 {[%clk 0:00:49]}  Qa3 {[%clk 0:02:06]} 17. Rc2 {[%clk 0:00:47]}  Rc8 {[%clk 0:01:59]} 18. Qf2 {[%clk 0:00:42]}  O-O {[%clk 0:01:52]} 19. Bc5 {[%clk 0:00:37]}  Qa4 {[%clk 0:01:48]} 20. Bxf8 {[%clk 0:00:37]}  Rxf8 {[%clk 0:01:44]} 21. Bd3 {[%clk 0:00:21]}  Bh3 {[%clk 0:01:42]} 22. Qe3 {[%clk 0:00:18]}  Rd8 {[%clk 0:01:41]} 23. Kf2 {[%clk 0:00:18]}  Na5 {[%clk 0:01:13]} 24. Rd1 {[%clk 0:00:18]}  Nc4 {[%clk 0:01:01]} 25. Qe2 {[%clk 0:00:18]}  Na3 {[%clk 0:00:22]} 26. Bc4 {[%clk 0:00:15]}  Rc8 {[%clk 0:00:20]} 27. Bb3 {[%clk 0:00:15]}  Qa5 {[%clk 0:00:19]} 28. Rcd2 {[%clk 0:00:14]}  Qxc3 {[%clk 0:00:18]} 29. Rd8+ {[%clk 0:00:11]} 1-0


[Site "https://www.chess.com"]

[Event "Titled Tuesday Blitz December 06 Early 2022"]
[White "Belozerov, Andrei"]
[Black "Gong, Qianyun"]
[WhiteFideId "4120213"]
[BlackFideId "8602425"]
[WhiteElo "2360"]
[BlackElo "2199"]
[Result "0-1"]
[Round "10"]
[TimeControl "180+1"]
[Date "2022.12.07"]
[WhiteClock "0:00:01"]
[BlackClock "0:00:12"]

1. d4 {[%clk 0:03:00]}  d5 {[%clk 0:02:58]} 2. c4 {[%clk 0:03:00]}  c6 {[%clk 0:02:57]} 3. Nf3 {[%clk 0:02:59]}  Nf6 {[%clk 0:02:57]} 4. g3 {[%clk 0:02:59]}  Bf5 {[%clk 0:02:50]} 5. Nc3 {[%clk 0:02:56]}  e6 {[%clk 0:02:50]} 6. Nh4 {[%clk 0:02:56]}  Be4 {[%clk 0:02:47]} 7. f3 {[%clk 0:02:55]}  Bg6 {[%clk 0:02:47]} 8. Qb3 {[%clk 0:02:54]}  b6 {[%clk 0:02:41]} 9. cxd5 {[%clk 0:02:46]}  exd5 {[%clk 0:02:36]} 10. Bf4 {[%clk 0:02:28]}  Bd6 {[%clk 0:02:33]} 11. O-O-O {[%clk 0:02:22]}  Bxf4+ {[%clk 0:02:01]} 12. gxf4 {[%clk 0:02:22]}  Nh5 {[%clk 0:02:01]} 13. Ng2 {[%clk 0:02:03]}  f5 {[%clk 0:01:54]} 14. e4 {[%clk 0:02:00]}  O-O {[%clk 0:01:41]} 15. exd5 {[%clk 0:01:45]}  Kh8 {[%clk 0:01:39]} 16. Bc4 {[%clk 0:01:29]}  b5 {[%clk 0:01:38]} 17. Bd3 {[%clk 0:01:29]}  a5 {[%clk 0:01:36]} 18. Rhe1 {[%clk 0:01:21]}  a4 {[%clk 0:01:15]} 19. Qb4 {[%clk 0:01:21]}  Na6 {[%clk 0:01:10]} 20. Qe7 {[%clk 0:01:20]}  Qa5 {[%clk 0:00:59]} 21. dxc6 {[%clk 0:01:13]}  b4 {[%clk 0:00:59]} 22. Re5 {[%clk 0:01:10]}  Qb6 {[%clk 0:00:57]} 23. Nd5 {[%clk 0:01:02]}  Qxc6+ {[%clk 0:00:56]} 24. Kb1 {[%clk 0:00:57]}  b3 {[%clk 0:00:52]} 25. a3 {[%clk 0:00:46]}  Rae8 {[%clk 0:00:33]} 26. Rc1 {[%clk 0:00:34]}  Qa8 {[%clk 0:00:23]} 27. Qd6 {[%clk 0:00:29]}  Rd8 {[%clk 0:00:22]} 28. Qxa6 {[%clk 0:00:28]}  Qb8 {[%clk 0:00:22]} 29. Qb6 {[%clk 0:00:23]}  Qa8 {[%clk 0:00:22]} 30. Rc5 {[%clk 0:00:20]}  Bf7 {[%clk 0:00:21]} 31. Bc4 {[%clk 0:00:19]}  Rb8 {[%clk 0:00:18]} 32. Qc7 {[%clk 0:00:19]}  Rbc8 {[%clk 0:00:14]} 33. Qd6 {[%clk 0:00:18]}  Rcd8 {[%clk 0:00:14]} 34. Qe7 {[%clk 0:00:18]}  Bxd5 {[%clk 0:00:14]} 35. Bxd5 {[%clk 0:00:17]}  Qa6 {[%clk 0:00:14]} 36. Bc4 {[%clk 0:00:16]}  Qb6 {[%clk 0:00:14]} 37. Qe6 {[%clk 0:00:14]}  Qb8 {[%clk 0:00:14]} 38. Rxf5 {[%clk 0:00:13]}  Rfe8 {[%clk 0:00:14]} 39. Qf7 {[%clk 0:00:09]}  Rf8 {[%clk 0:00:13]} 40. Qxh5 {[%clk 0:00:07]}  Rxd4 {[%clk 0:00:13]} 41. Ne3 {[%clk 0:00:04]}  Re8 {[%clk 0:00:13]} 42. Rfe5 {[%clk 0:00:04]}  Red8 {[%clk 0:00:12]} 43. Bd3 {[%clk 0:00:02]}  Rxd3 {[%clk 0:00:13]} 44. Red5 {[%clk 0:00:02]}  R3xd5 {[%clk 0:00:13]} 45. Rxd5 {[%clk 0:00:02]}  Rc8 {[%clk 0:00:13]} 46. Qe5 {[%clk 0:00:01]}  Qb7 {[%clk 0:00:12]} 0-1


[Site "https://www.chess.com"]

[Event "Titled Tuesday Blitz December 06 Early 2022"]
[White "Boros, Denes"]
[Black "Atakhan, Abtin"]
[WhiteFideId "722340"]
[BlackFideId "22502203"]
[WhiteElo "2464"]
[BlackElo "2189"]
[Result "1-0"]
[Round "10"]
[TimeControl "180+1"]
[Date "2022.12.06"]
[WhiteClock "0:00:14"]
[BlackClock "0:00:02"]

1. d4 {[%clk 0:03:00]}  Nf6 {[%clk 0:03:00]} 2. Nc3 {[%clk 0:03:01]}  d5 {[%clk 0:02:59]} 3. Nf3 {[%clk 0:03:02]}  e6 {[%clk 0:02:57]} 4. Bg5 {[%clk 0:03:00]}  h6 {[%clk 0:02:51]} 5. Bxf6 {[%clk 0:03:00]}  Qxf6 {[%clk 0:02:51]} 6. e4 {[%clk 0:03:01]}  Bb4 {[%clk 0:02:45]} 7. Qd3 {[%clk 0:03:01]}  c6 {[%clk 0:02:41]} 8. a3 {[%clk 0:02:57]}  dxe4 {[%clk 0:02:38]} 9. Qxe4 {[%clk 0:02:57]}  Bxc3+ {[%clk 0:02:37]} 10. bxc3 {[%clk 0:02:58]}  Nd7 {[%clk 0:02:24]} 11. Bd3 {[%clk 0:02:59]}  Qe7 {[%clk 0:02:15]} 12. a4 {[%clk 0:02:51]}  a5 {[%clk 0:02:14]} 13. Rb1 {[%clk 0:02:47]}  Qd6 {[%clk 0:02:11]} 14. c4 {[%clk 0:02:43]}  b6 {[%clk 0:02:09]} 15. O-O {[%clk 0:02:39]}  Rb8 {[%clk 0:02:04]} 16. Rfe1 {[%clk 0:02:37]}  Nf6 {[%clk 0:02:00]} 17. Qh4 {[%clk 0:02:36]}  O-O {[%clk 0:01:55]} 18. c3 {[%clk 0:02:24]}  c5 {[%clk 0:01:48]} 19. Ne5 {[%clk 0:02:23]}  cxd4 {[%clk 0:01:38]} 20. cxd4 {[%clk 0:02:24]}  Rd8 {[%clk 0:01:37]} 21. Rbd1 {[%clk 0:02:21]}  Bd7 {[%clk 0:01:26]} 22. Bc2 {[%clk 0:02:09]}  Be8 {[%clk 0:01:23]} 23. g4 {[%clk 0:01:57]}  Qb4 {[%clk 0:01:16]} 24. g5 {[%clk 0:01:55]}  hxg5 {[%clk 0:01:15]} 25. Qxg5 {[%clk 0:01:56]}  Rxd4 {[%clk 0:01:15]} 26. Kh1 {[%clk 0:01:48]}  Rxd1 {[%clk 0:00:44]} 27. Rxd1 {[%clk 0:01:49]}  Qc5 {[%clk 0:00:44]} 28. Rg1 {[%clk 0:01:46]}  Bc6+ {[%clk 0:00:38]} 29. f3 {[%clk 0:01:38]}  Ne8 {[%clk 0:00:37]} 30. Bh7+ {[%clk 0:01:12]}  Kf8 {[%clk 0:00:35]} 31. Qf4 {[%clk 0:01:08]}  Nd6 {[%clk 0:00:26]} 32. Qg3 {[%clk 0:00:53]}  g6 {[%clk 0:00:17]} 33. Qf4 {[%clk 0:00:42]}  Ke7 {[%clk 0:00:08]} 34. Bxg6 {[%clk 0:00:38]}  f6 {[%clk 0:00:06]} 35. Nxc6+ {[%clk 0:00:25]}  Qxc6 {[%clk 0:00:07]} 36. Bh5 {[%clk 0:00:25]}  Rh8 {[%clk 0:00:03]} 37. Rg7+ {[%clk 0:00:24]}  Kd8 {[%clk 0:00:03]} 38. Qxf6+ {[%clk 0:00:24]}  Kc8 {[%clk 0:00:04]} 39. Rg5 {[%clk 0:00:21]}  Rd8 {[%clk 0:00:02]} 40. Bg4 {[%clk 0:00:21]}  Kb8 {[%clk 0:00:01]} 41. Qxd8+ {[%clk 0:00:20]}  Ka7 {[%clk 0:00:01]} 42. Rg7+ {[%clk 0:00:18]}  Ka6 {[%clk 0:00:02]} 43. Qe7 {[%clk 0:00:14]} 1-0


[Site "https://www.chess.com"]

[Event "Titled Tuesday Blitz December 06 Early 2022"]
[White "Bortnyk, Olexandr"]
[Black "Korobov, Anton"]
[WhiteFideId "14120828"]
[BlackFideId "14105730"]
[WhiteElo "2723"]
[BlackElo "2635"]
[Result "1-0"]
[Round "10"]
[TimeControl "180+1"]
[Date "2022.12.06"]
[WhiteClock "0:00:11"]
[BlackClock "0:00:18"]

1. e4 {[%clk 0:03:00]}  c5 {[%clk 0:02:36]} 2. c3 {[%clk 0:02:59]}  Nf6 {[%clk 0:02:33]} 3. e5 {[%clk 0:02:59]}  Nd5 {[%clk 0:02:34]} 4. d4 {[%clk 0:03:00]}  cxd4 {[%clk 0:02:34]} 5. Nf3 {[%clk 0:03:01]}  Nc6 {[%clk 0:02:33]} 6. cxd4 {[%clk 0:03:02]}  d6 {[%clk 0:02:33]} 7. Bc4 {[%clk 0:03:02]}  Nb6 {[%clk 0:02:33]} 8. Bb5 {[%clk 0:03:02]}  dxe5 {[%clk 0:02:30]} 9. Nxe5 {[%clk 0:03:03]}  Bd7 {[%clk 0:02:31]} 10. Nxd7 {[%clk 0:03:04]}  Qxd7 {[%clk 0:02:31]} 11. Nc3 {[%clk 0:03:04]}  e6 {[%clk 0:02:31]} 12. O-O {[%clk 0:03:05]}  Be7 {[%clk 0:02:29]} 13. Qg4 {[%clk 0:03:01]}  O-O {[%clk 0:02:27]} 14. Rd1 {[%clk 0:02:58]}  Rfd8 {[%clk 0:02:12]} 15. Bxc6 {[%clk 0:02:52]}  Qxc6 {[%clk 0:02:06]} 16. Bh6 {[%clk 0:02:51]}  Bf8 {[%clk 0:02:05]} 17. Bg5 {[%clk 0:02:37]}  Rd7 {[%clk 0:02:02]} 18. Rac1 {[%clk 0:02:33]}  Nd5 {[%clk 0:02:02]} 19. Ne4 {[%clk 0:02:14]}  Qa6 {[%clk 0:01:56]} 20. Qh4 {[%clk 0:01:13]}  f6 {[%clk 0:01:45]} 21. Bd2 {[%clk 0:01:04]}  Qxa2 {[%clk 0:01:43]} 22. Qh3 {[%clk 0:01:01]}  Re8 {[%clk 0:01:38]} 23. b3 {[%clk 0:00:42]}  Qa6 {[%clk 0:01:30]} 24. Re1 {[%clk 0:00:41]}  b6 {[%clk 0:01:23]} 25. Rc6 {[%clk 0:00:38]}  Qb5 {[%clk 0:01:09]} 26. Rxe6 {[%clk 0:00:37]}  Rdd8 {[%clk 0:00:52]} 27. Qf5 {[%clk 0:00:24]}  Qd7 {[%clk 0:00:41]} 28. Rxe8 {[%clk 0:00:17]}  Qxf5 {[%clk 0:00:41]} 29. Rxd8 {[%clk 0:00:18]}  Kf7 {[%clk 0:00:40]} 30. h3 {[%clk 0:00:15]}  a5 {[%clk 0:00:35]} 31. g4 {[%clk 0:00:14]}  Qf3 {[%clk 0:00:30]} 32. Rxd5 {[%clk 0:00:12]}  Qxh3 {[%clk 0:00:29]} 33. f3 {[%clk 0:00:12]}  h6 {[%clk 0:00:26]} 34. Re3 {[%clk 0:00:11]}  Ba3 {[%clk 0:00:18]} 35. Rh5 {[%clk 0:00:11]} 1-0


[Site "https://www.chess.com"]

[Event "Titled Tuesday Blitz December 06 Early 2022"]
[White "Dzhaparov, Medet"]
[Black "Suduvasachmatai"]
[WhiteFideId "13803689"]
[WhiteElo "1702"]
[BlackElo "2032"]
[Result "0-1"]
[Round "10"]
[TimeControl "180+1"]
[Date "2022.12.07"]
[WhiteClock "0:00:01"]
[BlackClock "0:00:01"]

1. e4 {[%clk 0:03:00]}  c5 {[%clk 0:02:59]} 2. Nf3 {[%clk 0:03:00]}  d6 {[%clk 0:02:59]} 3. d4 {[%clk 0:03:01]}  cxd4 {[%clk 0:02:59]} 4. Nxd4 {[%clk 0:03:02]}  Nf6 {[%clk 0:03:00]} 5. Nc3 {[%clk 0:03:02]}  a6 {[%clk 0:03:01]} 6. Bg5 {[%clk 0:03:01]}  e5 {[%clk 0:02:59]} 7. Nb3 {[%clk 0:02:54]}  Be6 {[%clk 0:02:56]} 8. Bd3 {[%clk 0:02:47]}  Be7 {[%clk 0:02:53]} 9. O-O {[%clk 0:02:46]}  O-O {[%clk 0:02:52]} 10. Qf3 {[%clk 0:02:41]}  Nc6 {[%clk 0:02:50]} 11. Qg3 {[%clk 0:02:40]}  Nh5 {[%clk 0:02:26]} 12. Qf3 {[%clk 0:02:17]}  Bxg5 {[%clk 0:02:24]} 13. Qxh5 {[%clk 0:02:14]}  g6 {[%clk 0:01:47]} 14. Qf3 {[%clk 0:02:10]}  f5 {[%clk 0:01:43]} 15. exf5 {[%clk 0:02:02]}  gxf5 {[%clk 0:01:42]} 16. Qe2 {[%clk 0:01:24]}  e4 {[%clk 0:01:28]} 17. Nxe4 {[%clk 0:01:11]}  fxe4 {[%clk 0:01:21]} 18. Qxe4 {[%clk 0:01:12]}  Bf5 {[%clk 0:01:16]} 19. Qd5+ {[%clk 0:01:10]}  Kh8 {[%clk 0:01:14]} 20. Bxf5 {[%clk 0:01:09]}  Qf6 {[%clk 0:01:09]} 21. Bd3 {[%clk 0:01:00]}  Bf4 {[%clk 0:01:03]} 22. Qh5 {[%clk 0:00:55]}  Qg7 {[%clk 0:00:55]} 23. Kh1 {[%clk 0:00:43]}  Rg8 {[%clk 0:00:52]} 24. Rg1 {[%clk 0:00:35]}  Be5 {[%clk 0:00:46]} 25. c3 {[%clk 0:00:31]}  Raf8 {[%clk 0:00:46]} 26. f3 {[%clk 0:00:23]}  Rf6 {[%clk 0:00:43]} 27. g3 {[%clk 0:00:15]}  Rh6 {[%clk 0:00:35]} 28. Qf5 {[%clk 0:00:13]}  Rxh2+ {[%clk 0:00:16]} 29. Kxh2 {[%clk 0:00:11]}  Bxg3+ {[%clk 0:00:16]} 30. Kg2 {[%clk 0:00:06]}  Qh6 {[%clk 0:00:09]} 31. Rh1 {[%clk 0:00:04]}  Bh2+ {[%clk 0:00:06]} 32. Kf1 {[%clk 0:00:02]}  Ne5 {[%clk 0:00:05]} 33. Ke2 {[%clk 0:00:02]}  Nxd3 {[%clk 0:00:04]} 34. Qxd3 {[%clk 0:00:03]}  Re8+ {[%clk 0:00:04]} 35. Kd1 {[%clk 0:00:02]}  Qh3 {[%clk 0:00:02]} 36. Kc2 {[%clk 0:00:02]}  Qg2+ {[%clk 0:00:03]} 37. Qd2 {[%clk 0:00:02]}  Qg6+ {[%clk 0:00:02]} 38. Kc1 {[%clk 0:00:02]}  Rg8 {[%clk 0:00:01]} 39. Rxh2 {[%clk 0:00:01]}  Qg1+ {[%clk 0:00:01]} 0-1


[Site "https://www.chess.com"]